bitfinex-derivatives/quotes_SOLF0:USTF0_20241215
["timestamp","ask_amount","ask_price","bid_price","bid_amount"]
[1734285870222,1.96,221.45,221.41,6.10883793]
[1734285870421,1.96,221.45,221.42,3.31142184]
[1734285870623,1.96,221.45,221.41,6.10883793]
[1734285870818,1.96,221.45,221.42,3.31182279]
[1734285871122,1.96,221.45,221.4,1.57]
[1734285871318,1.96,221.45,221.42,2.2588]
[1734285873422,2.2588,221.44,221.4,3.8291]
[1734285873622,6.10883793,221.44,221.41,3.31326169]
[1734285873925,6.10883793,221.44,221.37,6.10883793]
[1734285874330,2.2588,221.43,221.38,5.57253372]
[1734285874628,6.10883793,221.44,221.39,3.31349084]
[1734285874829,8.36773793,221.42,221.38,2.2593]
[1734285875028,8.36773793,221.42,221.39,3.31355667]
[1734285875029,1.96,221.41,221.39,3.31355667]
[1734285875229,1.96,221.41,221.38,2.2593]
[1734285876430,6.10883793,221.4,221.36,2.2594]
[1734285879232,4.219,221.41,221.37,2.2594]
[1734285879432,1.96,221.41,221.37,2.2594]
[1734285881734,1.96,221.41,221.38,2.2593]
[1734285884633,1.96,221.41,221.39,2.2592]
[1734285886331,1.96,221.41,221.4,2.2591]
[1734285886735,2.2585,221.46,221.37,6.10883793]
[1734285887033,1.96,221.45,221.39,6.10883793]
[1734285888534,1.96,221.45,221.42,2.2588]
[1734285888929,8.36733793,221.46,221.42,2.2588]
[1734285889133,1.96,221.45,221.42,2.2588]
[1734285891135,1.96,221.45,221.39,6.10883793]
[1734285891437,1.96,221.45,221.43,2.2588]
[1734285891931,1.96,221.45,221.42,2.2589]
[1734285893328,1.96,221.44,221.42,2.2589]
[1734285896236,1.96,221.44,221.39,6.10883793]
[1734285896432,1.96,221.44,221.41,2.259]
[1734285900041,1.96,221.44,221.42,2.2589]
[1734285901841,2.2584,221.47,221.43,2.2588]
[1734285902045,1.96,221.46,221.43,6.10883793]
[1734285902237,7.63073793,221.51,221.45,6.10883793]
[1734285902238,6.10883793,221.51,221.45,6.10883793]
[1734285902432,1.96,221.5,221.43,6.10883793]
[1734285902637,1.96,221.5,221.45,2.2586]
[1734285902638,2.2583,221.49,221.45,2.2586]
[1734285902837,2.2583,221.49,221.41,6.10883793]
[1734285902838,6.10883793,221.49,221.41,6.10883793]
[1734285903038,6.10883793,221.49,221.42,3.30870201]
[1734285903239,6.10883793,221.49,221.43,3.30870201]
[1734285903439,6.10883793,221.49,221.41,6.10883793]
[1734285903637,2.2584,221.47,221.42,5.56762311]
[1734285903841,1.96,221.48,221.43,9.41766104]
[1734285904038,1.96,221.47,221.44,3.30882311]
[1734285904344,1.96,221.48,221.45,5.56732311]
[1734285904544,1.96,221.48,221.45,2.2585]
[1734285909343,1.96,221.48,221.46,2.2585]
[1734285909745,2.2581,221.5,221.46,2.2585]
[1734285909942,1.96,221.49,221.46,2.2585]
[1734285910547,2.2581,221.5,221.46,2.2585]
[1734285910746,1.96,221.49,221.46,2.2585]
[1734285916361,6.72861391,221.57,221.5,2.258]
[1734285916362,5.32071391,221.57,221.5,2.258]
[1734285916559,1.96,221.56,221.5,2.258]
[1734285916758,6.10883793,221.54,221.45,6.10883793]
[1734285916962,4.2178,221.53,221.45,6.10883793]
[1734285917359,1.96,221.52,221.47,6.10883793]
[1734285918364,1.96,221.51,221.47,6.10883793]
[1734285919359,2.2576,221.56,221.51,2.2579]
[1734285919563,1.96,221.55,221.51,2.2579]
[1734285920558,2.2576,221.56,221.51,2.2579]
[1734285920862,1.96,221.55,221.51,2.2579]
[1734285924068,1.96,221.54,221.53,2.2577]
[1734285925263,8.06883793,221.54,221.46,5.31764575]
[1734285925462,8.06883793,221.54,221.46,11.42648368]
[1734285926466,10.32653793,221.54,221.49,2.2582]
[1734285932777,10.32653793,221.54,221.5,2.258]
[1734285935472,4.2177,221.54,221.5,2.258]
[1734285935770,1.96,221.54,221.51,2.258]
[1734285935961,1.96,221.54,221.5,6.10883793]
[1734285936974,1.96,221.54,221.53,2.2578]
[1734285937872,1.96,221.55,221.54,2.2576]
[1734285939671,1.4657,221.58,221.54,2.2576]
[1734285939870,1.96,221.57,221.54,2.2576]
[1734285940067,55.68343681,221.59,221.54,6.10883793]
[1734285940273,1.96,221.58,221.54,6.10883793]
[1734285940773,1.96,221.58,221.57,2.2574]
[1734285941975,1.96,221.58,221.55,2.2575]
[1734285942273,1.96,221.58,221.54,6.10883793]
[1734285942674,2.2568,221.63,221.54,6.10883793]
[1734285942874,8.06883793,221.62,221.56,6.10883793]
[1734285944273,1.96,221.62,221.56,6.10883793]
[1734285944467,1.96,221.62,221.58,2.2572]
[1734285945772,4.2169,221.62,221.58,2.2572]
[1734285946280,1.96,221.61,221.58,2.2572]
[1734285946878,1.96,221.6,221.58,2.2572]
[1734285947380,1.96,221.59,221.58,2.2572]
[1734285948984,1.96,221.59,221.56,2.2574]
[1734285952787,1.96,221.59,221.47,4.8723]
[1734285953083,1.96,221.59,221.53,6.10883793]
[1734285953476,1.96,221.59,221.56,2.2574]
[1734285959087,2.2573,221.58,221.47,2.9123]
[1734285959288,2.2573,221.58,221.51,6.10883793]
[1734285959588,1.96,221.59,221.51,6.10883793]
[1734285959986,1.96,221.59,221.54,2.2576]
[1734285959987,4.2172,221.59,221.54,2.2576]
[1734285962283,8.36613793,221.58,221.53,2.2578]
[1734285962480,6.10883793,221.58,221.5,6.10883793]
[1734285963284,6.10883793,221.56,221.5,6.10883793]
[1734285963487,1.96,221.55,221.48,6.10883793]
[1734285963681,1.96,221.55,221.49,3.29529312]
[1734285963890,1.96,221.55,221.48,6.10883793]
[1734285964189,1.96,221.55,221.49,3.29551458]
[1734285964382,1.96,221.55,221.48,6.10883793]
[1734285964580,1.96,221.55,221.51,2.2579]
[1734285965381,1.96,221.55,221.52,2.2578]
[1734285973088,2.981,221.62,221.54,6.10883793]
[1734285973288,1.96,221.61,221.54,6.10883793]
[1734285973589,1.96,221.61,221.56,6.10883793]
[1734285973991,9.08983793,221.62,221.56,6.10883793]
[1734285974293,1.96,221.61,221.56,6.10883793]
[1734285974497,4.217,221.61,221.57,2.2574]
[1734285976390,1.96,221.61,221.58,2.2573]
[1734285977290,1.96,221.61,221.56,6.10883793]
[1734285977492,1.96,221.61,221.57,2.2574]
[1734285978092,6.10883793,221.6,221.5,4.3601]
[1734285978294,6.10883793,221.6,221.51,6.10883793]
[1734285978499,2.2573,221.58,221.51,6.10883793]
[1734285978702,1.96,221.57,221.54,2.2577]
[1734285984297,1.96,221.57,221.53,6.10883793]
[1734285984607,1.96,221.57,221.55,2.2575]
[1734285985397,1.96,221.57,221.55,6.10883793]
[1734285985597,1.96,221.57,221.56,2.2575]
[1734285986208,1.96,221.59,221.58,2.2573]
[1734285988701,1.96,221.59,221.57,2.2573]
[1734285992026,1.96,221.59,221.54,2.2576]
[1734285992229,6.10883793,221.58,221.54,2.2576]
[1734285992427,6.10883793,221.58,221.46,5.31764575]
[1734285992621,6.10883793,221.58,221.5,6.10883793]
[1734285993124,8.36613793,221.58,221.5,6.10883793]
[1734285993330,8.36613793,221.58,221.52,6.10883793]
[1734285994530,8.36613793,221.58,221.54,2.2577]
[1734286000715,2.2574,221.57,221.54,2.2577]
[1734286001409,2.2575,221.56,221.52,2.2578]
[1734286001611,1.96,221.55,221.52,2.2578]
[1734286002313,1.96,221.55,221.53,2.2577]
[1734286010519,4.2176,221.55,221.52,2.2579]
[1734286010718,1.96,221.55,221.47,6.10883793]
[1734286010919,1.96,221.55,221.48,3.29885084]
[1734286011118,1.96,221.55,221.47,6.10883793]
[1734286011321,1.96,221.55,221.48,3.29889201]
[1734286011622,2.2577,221.54,221.5,2.2581]
[1734286014021,1.96,221.55,221.51,6.10883793]
[1734286014224,1.96,221.55,221.54,2.2577]
[1734286022748,12.03818464,221.61,221.57,2.2573]
[1734286022946,1.96,221.6,221.57,2.2573]
[1734286024253,6.10883793,221.61,221.57,2.2573]
[1734286024556,1.96,221.6,221.57,2.2573]
[1734286025052,2.2573,221.58,221.51,2.2579]
[1734286025256,1.96,221.6,221.48,5.54779579]
[1734286025257,6.10883793,221.57,221.48,5.54779579]
[1734286025451,6.10883793,221.57,221.49,9.40642894]
[1734286025452,1.96,221.56,221.49,9.40642894]
[1734286025748,1.96,221.56,221.51,2.2579]
[1734286025953,1.96,221.56,221.49,6.10883793]
[1734286026543,6.10883793,221.55,221.49,2.2582]
[1734286026842,6.10883793,221.55,221.42,1.5237]
[1734286026843,6.10883793,221.53,221.42,1.5237]
[1734286027048,1.96,221.52,221.46,6.10883793]
[1734286027254,1.96,221.52,221.47,3.29938766]
[1734286027453,1.96,221.52,221.46,6.10883793]
[1734286027653,1.96,221.52,221.42,1.5237]
[1734286027957,6.10883793,221.51,221.44,6.10883793]
[1734286028248,6.10883793,221.51,221.46,2.2584]
[1734286028652,6.10883793,221.51,221.47,2.2584]
[1734286029324,4.218,221.52,221.47,2.2584]
[1734286030725,1.96,221.52,221.45,5.5563486]
[1734286030931,1.96,221.52,221.48,2.2583]
[1734286032129,1.96,221.52,221.46,6.10883793]
[1734286032330,1.96,221.52,221.48,6.10883793]
[1734286032726,1.96,221.52,221.5,2.258]
[1734286047545,2.2576,221.56,221.49,6.10883793]
[1734286047736,1.96,221.55,221.51,6.10883793]
[1734286047936,1.96,221.54,221.51,6.10883793]
[1734286048948,1.96,221.54,221.53,2.2578]
[1734286050443,1.96,221.55,221.53,2.2578]
[1734286051839,1.96,221.55,221.48,2.2583]
[1734286052047,6.10883793,221.53,221.49,3.29730263]
[1734286052245,6.10883793,221.53,221.45,11.66518653]
[1734286052444,6.10883793,221.53,221.46,3.29857425]
[1734286052645,6.10883793,221.53,221.47,3.29857425]
[1734286052846,6.10883793,221.53,221.45,11.66518653]
[1734286053043,6.10883793,221.53,221.46,3.29887618]
[1734286053247,6.10883793,221.53,221.45,11.66518653]
[1734286053447,2.2579,221.52,221.48,2.2582]
[1734286053649,8.06883793,221.51,221.45,5.5563486]
[1734286053851,1.96,221.5,221.45,5.5563486]
[1734286055443,4.2181,221.5,221.46,2.2584]
[1734286055653,1.96,221.5,221.46,2.2584]
[1734286056654,4.2181,221.5,221.46,2.2584]
[1734286057049,1.96,221.5,221.44,2.2586]
[1734286057449,1.96,221.5,221.44,7.70975375]
[1734286058456,2.2582,221.49,221.44,7.70975375]
[1734286061855,2.2582,221.49,221.44,2.2586]
[1734286062252,2.2582,221.49,221.43,6.10883793]
[1734286062459,2.2582,221.49,221.45,2.2586]
[1734286063361,2.2582,221.49,221.44,2.2587]
[1734286066459,2.2582,221.49,221.44,7.5785697]
[1734286066654,4.2181,221.5,221.44,5.3198697]
[1734286066962,4.2181,221.5,221.45,2.2585]
[1734286071262,1.96,221.5,221.45,2.2585]
[1734286071459,2.2582,221.49,221.45,2.2585]
[1734286076472,1.96,221.5,221.41,2.9585]
[1734286076670,6.10883793,221.49,221.36,1.96]
[1734286076871,6.10883793,221.49,221.41,9.41183078]
[1734286077075,6.10883793,221.47,221.41,5.35126377]
[1734286077284,1.96,221.46,221.38,6.10883793]
[1734286077570,1.96,221.46,221.33,3.024]
[1734286077774,1.96,221.46,221.39,2.2591]
[1734286077775,2.2587,221.45,221.39,2.2591]
[1734286078872,6.10883793,221.45,221.37,2.2593]
[1734286079077,6.10883793,221.43,221.35,6.10883793]
[1734286079278,1.96,221.42,221.35,6.10883793]
[1734286079682,2.2591,221.4,221.34,8.36843793]
[1734286079979,2.2591,221.4,221.35,6.10883793]
[1734286081370,2.2591,221.4,221.35,5.32094859]
[1734286081576,2.2591,221.4,221.35,7.58054859]
[1734286086185,8.36803793,221.39,221.33,2.2597]
[1734286086485,6.10883793,221.37,221.3,6.10883793]
[1734286086680,1.96,221.36,221.3,6.10883793]
[1734286088182,1.96,221.36,221.31,2.2599]
[1734286088484,1.96,221.36,221.3,6.10883793]
[1734286088883,1.96,221.36,221.33,2.2598]
[1734286089375,1.96,221.36,221.32,5.3564539]
[1734286089376,1.96,221.36,221.35,2.2596]
[1734286090786,1.96,221.36,221.33,2.2597]
[1734286090983,1.96,221.36,221.3,6.10883793]
[1734286092487,4.2195,221.36,221.31,2.26]
[1734286092686,4.2195,221.36,221.3,5.33920534]
[1734286092687,6.10883793,221.35,221.3,5.33920534]
[1734286093086,2.2597,221.34,221.3,5.33920534]
[1734286094488,2.2597,221.34,221.29,2.2602]
[1734286094689,2.2599,221.32,221.26,2.2605]
[1734286094890,2.2599,221.32,221.23,2.8909]
[1734286094891,1.96,221.31,221.25,6.10883793]
[1734286095090,8.06883793,221.31,221.25,6.10883793]
[1734286095286,8.06883793,221.31,221.26,5.55737576]
[1734286095487,10.32883793,221.31,221.26,7.81787576]
[1734286095791,10.32883793,221.31,221.26,2.2605]
[1734286096095,2.2601,221.3,221.26,2.2605]
[1734286096795,2.2601,221.3,221.25,2.2606]
[1734286097692,2.2602,221.29,221.24,2.2607]
[1734286098494,8.36903793,221.29,221.24,2.2607]
[1734286099197,10.32893793,221.31,221.24,5.41779413]
[1734286100490,10.32893793,221.31,221.26,2.2605]
[1734286100686,2.2601,221.3,221.26,2.2605]
[1734286101989,6.10883793,221.29,221.21,58.62782275]
[1734286102190,6.10883793,221.25,221.21,5.41315408]
[1734286102387,1.96,221.24,221.11,1.96]
[1734286102587,1.96,221.24,221.2,2.2611]
[1734286103091,8.06883793,221.24,221.2,2.2611]
[1734286103797,1.96,221.24,221.18,6.10883793]
[1734286104095,1.96,221.24,221.21,2.261]
[1734286104297,4.4664,221.36,221.2,6.10883793]
[1734286104499,6.10883793,221.29,221.25,2.2606]
[1734286104694,1.96,221.28,221.25,2.2606]
[1734286104894,1.96,221.28,221.22,6.10883793]
[1734286105191,1.96,221.28,221.23,2.2607]
[1734286105394,4.2204,221.28,221.23,2.2607]
[1734286105596,6.10883793,221.27,221.23,2.2607]
[1734286108490,6.10883793,221.27,221.18,5.29765394]
[1734286108491,1.96,221.26,221.24,6.10883793]
[1734286108696,1.96,221.27,221.24,6.10883793]
[1734286108897,6.10883793,221.32,221.27,2.2604]
[1734286108898,1.96,221.28,221.27,2.2604]
[1734286109291,1.96,221.28,221.21,6.10883793]
[1734286109894,1.96,221.28,221.25,2.2606]
[1734286110391,1.96,221.28,221.26,2.2605]
[1734286112596,1.96,221.28,221.22,6.10883793]
[1734286113095,1.96,221.28,221.25,2.2606]
[1734286116200,1.96,221.28,221.27,2.2604]
[1734286116405,1.96,221.28,221.24,6.10883793]
[1734286117002,6.10883793,221.25,221.18,11.40649187]
[1734286117304,1.96,221.24,221.18,11.40649187]
[1734286117701,1.96,221.24,221.19,2.2612]
[1734286117905,1.96,221.24,221.18,11.40649187]
[1734286118306,1.96,221.24,221.22,2.2608]
[1734286119399,1.96,221.24,221.23,2.2608]
[1734286121402,1.96,221.24,221.18,5.29765394]
[1734286121403,1.96,221.24,221.22,2.2609]
[1734286124007,1.96,221.24,221.18,5.29765394]
[1734286124207,6.10883793,221.23,221.17,6.10883793]
[1734286124404,6.10883793,221.23,221.15,6.10883793]
[1734286124604,6.10883793,221.23,221.16,3.30176318]
[1734286124806,6.10883793,221.23,221.17,3.30176318]
[1734286125006,6.10883793,221.23,221.15,6.10883793]
[1734286125200,6.10883793,221.23,221.16,3.30151669]
[1734286125506,6.10883793,221.23,221.19,2.2612]
[1734286127509,6.10883793,221.23,221.18,2.2613]
[1734286127709,6.10883793,221.21,221.12,1.4902]
[1734286128008,1.96,221.2,221.14,6.10883793]
[1734286128209,1.96,221.2,221.15,3.30281776]
[1734286128407,1.96,221.2,221.14,6.10883793]
[1734286128408,1.96,221.2,221.16,3.30314399]
[1734286128601,1.96,221.2,221.17,2.2614]
[1734286136110,1.96,221.2,221.19,2.2612]
[1734286138713,5.51953914,221.37,221.18,6.10883793]
[1734286139014,6.10883793,221.26,221.18,6.10883793]
[1734286139217,1.96,221.25,221.22,2.2609]
[1734286139410,6.10883793,221.24,221.22,2.2609]
[1734286141113,6.10883793,221.24,221.18,2.2613]
[1734286141414,6.10883793,221.24,221.19,3.31083842]
[1734286141617,6.10883793,221.24,221.16,6.10883793]
[1734286141816,6.10883793,221.24,221.17,3.31091675]
[1734286142111,6.10883793,221.22,221.18,3.31091675]
[1734286142318,1.96,221.21,221.15,5.45252872]
[1734286142513,1.96,221.21,221.16,3.31130318]
[1734286142809,1.96,221.21,221.17,3.31130318]
[1734286143014,1.96,221.21,221.15,5.45252872]
[1734286143015,1.96,221.21,221.18,2.2613]
[1734286144512,1.96,221.21,221.15,5.45252872]
[1734286144707,1.96,221.21,221.19,2.2612]
[1734286145107,1.96,221.21,221.2,2.2611]
[1734286151520,6.10883793,221.24,221.22,2.2609]
[1734286151715,1.96,221.23,221.22,2.2609]
[1734286151916,55.7562443,221.34,221.19,6.10883793]
[1734286152218,6.10883793,221.28,221.21,6.10883793]
[1734286152427,6.10883793,221.28,221.22,3.31188833]
[1734286152428,1.96,221.27,221.22,3.31188833]
[1734286152626,1.96,221.27,221.23,3.31188833]
[1734286152829,1.96,221.27,221.21,6.10883793]
[1734286153032,1.96,221.27,221.25,2.2606]
[1734286153339,6.10883793,221.28,221.25,2.2606]
[1734286153539,1.96,221.27,221.25,2.2606]
[1734286156940,1.96,221.27,221.26,2.2605]
[1734286157356,1.96,221.27,221.17,4.531]
[1734286157547,1.96,221.27,221.24,2.2606]
[1734286158035,1.96,221.27,221.21,6.10883793]
[1734286158239,1.96,221.27,221.25,2.2606]
[1734286160433,1.96,221.27,221.17,4.531]
[1734286160638,6.10883793,221.24,221.22,2.2609]
[1734286160933,1.96,221.23,221.22,2.2609]
[1734286161135,1.96,221.23,221.22,3.3123531]
[1734286161340,1.96,221.23,221.2,2.2611]
[1734286164345,1.96,221.23,221.16,5.53055961]
[1734286164537,1.96,221.23,221.19,2.2612]
[1734286164737,1.96,221.23,221.2,3.31327801]
[1734286165044,1.96,221.23,221.19,2.2612]
[1734286165247,1.96,221.23,221.2,3.31337399]
[1734286165547,1.96,221.23,221.19,2.2612]
[1734286165744,1.96,221.23,221.2,3.31337592]
[1734286165944,1.96,221.23,221.19,2.2612]
[1734286166149,1.96,221.23,221.2,3.31338864]
[1734286166338,1.96,221.23,221.19,2.2612]
[1734286166537,1.96,221.23,221.2,3.3135607]
[1734286166741,1.96,221.23,221.19,2.2612]
[1734286167049,6.10883793,221.22,221.2,3.31355992]
[1734286167346,6.10883793,221.22,221.16,5.53055961]
[1734286167538,6.10883793,221.19,221.17,3.31365157]
[1734286167738,1.96,221.18,221.12,9.04763793]
[1734286167942,1.96,221.18,221.13,3.3137637]
[1734286168246,1.96,221.18,221.15,2.2616]
[1734286168448,1.96,221.18,221.16,3.3137637]
[1734286168746,1.96,221.18,221.17,3.3137637]
[1734286169252,1.96,221.18,221.15,7.63200303]
[1734286169447,1.96,221.18,221.16,3.31396558]
[1734286169652,1.96,221.18,221.17,3.31396558]
[1734286172061,1.96,221.18,221.17,3.3136621]
[1734286172272,1.96,221.18,221.16,2.2615]
[1734286172555,1.96,221.18,221.17,3.31353079]
[1734286175159,1.96,221.18,221.16,2.2615]
[1734286175459,1.96,221.18,221.17,3.31336188]
[1734286175651,8.06883793,221.18,221.17,3.31336188]
[1734286175959,8.06883793,221.18,221.14,2.2617]
[1734286176152,8.06883793,221.18,221.15,3.31339988]
[1734286176455,8.06883793,221.18,221.16,3.31339988]
[1734286176754,8.06883793,221.18,221.08,33.65930457]
[1734286176755,8.06883793,221.18,221.12,2.2619]
[1734286176955,6.10883793,221.15,221.13,3.31346245]
[1734286177255,1.96,221.14,221.12,2.2619]
[1734286177454,1.96,221.14,221.13,3.31317496]
[1734286178455,1.96,221.14,221.13,3.31280249]
[1734286180059,1.96,221.14,221.12,2.2619]
[1734286180758,1.96,221.14,221.13,3.31202991]
[1734286181360,1.96,221.14,221.12,2.2619]
[1734286184768,1.96,221.14,221.13,2.2619]
[1734286192462,1.96,221.14,221.12,2.2619]
[1734286193668,6.10883793,221.13,221.1,2.2621]
[1734286193967,6.10883793,221.13,221.07,6.10883793]
[1734286194168,6.10883793,221.13,221.08,3.30700504]
[1734286194369,6.10883793,221.11,221.08,2.2624]
[1734286194570,1.96,221.1,221.08,2.2624]
[1734286195268,6.10883793,221.12,221.09,2.2623]
[1734286195468,6.10883793,221.14,221.06,6.10883793]
[1734286195670,1.96,221.11,221.07,3.30610365]
[1734286195970,1.96,221.11,221.08,3.30610365]
[1734286196165,1.96,221.11,221.06,6.10883793]
[1734286196369,1.96,221.11,221.07,3.30552396]
[1734286196565,1.96,221.11,221.1,2.2622]
[1734286196866,1.96,221.11,221.1,3.30547172]
[1734286197464,1.96,221.11,221.06,11.57050036]
[1734286197664,1.96,221.11,221.07,3.30539281]
[1734286197867,1.96,221.11,221.08,3.30539281]
[1734286198068,1.96,221.11,221.09,3.30539281]
[1734286198266,1.96,221.11,221.1,3.30539281]
[1734286198468,1.96,221.11,221.1,5.56759281]
[1734286199974,6.10883793,221.17,221.15,2.2616]
[1734286200272,1.96,221.16,221.15,2.2616]
[1734286200567,6.10883793,221.17,221.15,2.2616]
[1734286200868,1.96,221.16,221.15,2.2616]
[1734286202071,2.2608,221.24,221.12,6.77883793]
[1734286202270,6.10883793,221.2,221.13,3.30772611]
[1734286202467,6.10883793,221.2,221.14,3.30772611]
[1734286202667,6.10883793,221.18,221.12,6.77883793]
[1734286202967,1.96,221.17,221.13,3.30773638]
[1734286203164,1.96,221.17,221.14,3.30773638]
[1734286203368,1.96,221.17,221.12,0.67]
[1734286203670,1.96,221.17,221.13,3.30872519]
[1734286203870,1.96,221.17,221.14,3.30872519]
[1734286204168,1.96,221.17,221.15,3.30972325]
[1734286204372,1.96,221.17,221.09,6.10883793]
[1734286204671,1.96,221.17,221.16,2.2615]
[1734286206261,1.96,221.17,221.16,5.57335797]
[1734286206869,1.96,221.17,221.16,2.2615]
[1734286208169,1.96,221.17,221.16,5.57390793]
[1734286208972,6.10883793,221.2,221.16,3.31240793]
[1734286209273,2.2609,221.23,221.17,3.31329147]
[1734286209274,1.96,221.19,221.17,3.31329147]
[1734286209466,1.96,221.18,221.15,6.10883793]
[1734286209671,1.96,221.18,221.17,2.2614]
[1734286209867,6.10883793,221.23,221.17,3.31305021]
[1734286210066,1.96,221.22,221.18,3.31305021]
[1734286210271,1.96,221.22,221.15,6.10883793]
[1734286210571,1.96,221.22,221.16,3.31329123]
[1734286210772,1.96,221.22,221.09,1.5323]
[1734286210773,6.10883793,221.21,221.17,3.31329123]
[1734286210975,6.10883793,221.21,221.19,2.2612]
[1734286211976,6.10883793,221.21,221.19,2.2611]
[1734286221180,1.96,221.22,221.19,2.2611]
[1734286221385,6.10883793,221.21,221.2,2.2611]
[1734286222980,6.10883793,221.21,221.13,6.10883793]
[1734286223181,6.10883793,221.21,221.18,2.2612]
[1734286224077,6.10883793,221.19,221.09,1.5323]
[1734286224283,1.96,221.18,221.15,2.2616]
[1734286224484,1.96,221.17,221.15,2.2616]
[1734286224676,1.96,221.16,221.15,2.2616]
[1734286227885,8.06883793,221.16,221.15,2.2616]
[1734286232586,8.06883793,221.16,221.12,2.2619]
[1734286232779,6.10883793,221.13,221.12,2.2619]
[1734286232977,6.10883793,221.13,221.12,5.57567047]
[1734286235183,6.10883793,221.13,221.11,2.2621]
[1734286235485,6.10883793,221.13,221.0,4.4531]
[1734286235486,8.06883793,221.12,221.03,6.10883793]
[1734286235684,6.10883793,221.1,221.07,3.31403521]
[1734286235988,1.96,221.09,221.08,2.2624]
[1734286236889,1.96,221.09,221.08,5.57533322]
[1734286237690,1.96,221.09,221.08,2.2624]
[1734286237883,1.96,221.09,221.06,2.2625]
[1734286238086,6.10883793,221.07,221.06,2.2625]
[1734286239190,6.10883793,221.07,221.01,6.10883793]
[1734286239392,6.10883793,221.07,221.05,2.2626]
[1734286240285,6.10883793,221.07,220.98,6.10883793]
[1734286240490,6.10883793,221.05,220.99,3.30966176]
[1734286240686,1.96,221.04,221.02,5.32575889]
[1734286240996,1.96,221.04,221.03,3.30966176]
[1734286241388,1.96,221.04,221.03,5.57246176]
[1734286241893,1.96,221.04,221.03,2.2628]
[1734286242196,1.96,221.04,221.03,5.57136001]
[1734286243598,1.96,221.04,221.03,2.2628]
[1734286245004,1.96,221.04,220.94,1.5328]
[1734286245194,6.10883793,221.03,220.96,6.10883793]
[1734286245496,6.10883793,221.03,220.97,3.30503195]
[1734286245700,6.10883793,221.03,220.96,6.10883793]
[1734286245900,6.10883793,221.03,220.97,3.30516017]
[1734286246098,6.10883793,221.03,220.96,6.10883793]
[1734286246291,6.10883793,220.97,220.94,0.24201]
[1734286246496,1.96,220.96,220.94,0.24201]
[1734286247407,1.96,220.96,220.95,2.2637]
[1734286248202,1.96,220.96,220.95,6.10883793]
[1734286248401,1.29,220.96,220.95,6.10883793]
[1734286249507,6.10883793,221.03,221.01,2.263]
[1734286249707,1.96,221.02,221.01,2.263]
[1734286250406,1.96,221.02,220.97,0.67]
[1734286250407,1.96,221.02,220.97,6.77883793]
[1734286250598,1.96,221.02,220.99,6.10883793]
[1734286250797,1.96,221.02,220.97,0.67]
[1734286251904,6.10883793,221.01,220.97,0.67]
[1734286252207,1.96,221.02,220.97,0.67]
[1734286253411,1.96,221.02,221.0,2.2631]
[1734286253711,6.10883793,221.01,221.0,2.2631]
[1734286254413,6.10883793,221.01,220.98,2.2633]
[1734286254714,1.96,221.02,220.94,0.24201]
[1734286254715,6.10883793,220.99,220.94,0.24201]
[1734286254914,1.96,220.98,220.94,0.24201]
[1734286255307,6.10883793,220.97,220.95,2.2637]
[1734286256809,6.10883793,220.97,220.96,2.2636]
[1734286257014,6.10883793,220.97,220.94,0.24201]
[1734286258012,6.10883793,220.97,220.95,2.2637]
[1734286258210,6.10883793,220.97,220.94,0.24201]
[1734286258416,6.10883793,220.95,220.94,0.24201]
[1734286260617,1.96,220.98,220.94,0.24201]
[1734286260819,1.96,220.97,220.94,0.24201]
[1734286261214,1.96,220.97,220.96,2.2636]
[1734286263120,6.10883793,220.98,220.96,2.2636]
[1734286263419,1.96,220.97,220.96,2.2636]
[1734286270517,1.96,220.97,220.89,5.34953978]